bitfinex-derivatives/quotes_BTCF0:USTF0_20210409
["timestamp","ask_amount","ask_price","bid_price","bid_amount"]
[1617926400294,0.55198665,58078.0,58072.0,0.10725655]
[1617926400491,0.55198665,58078.0,58045.0,0.0515]
[1617926400694,0.10725655,58065.0,58059.0,0.10725655]
[1617926400991,0.10725655,58065.0,58061.0,0.71179566]
[1617926401932,0.4447301,58078.0,58061.0,0.71179566]
[1617926402090,0.4447301,58078.0,58059.0,0.10725655]
[1617926402717,0.4447301,58078.0,58058.0,0.71196761]
[1617926403192,0.4447301,58078.0,58057.0,0.71207656]
[1617926403193,6.0,58060.0,58057.0,0.71207656]
[1617926403392,6.0,58059.0,58057.0,0.71207656]
[1617926403791,0.4447301,58078.0,58057.0,0.71207656]
[1617926403993,0.4447301,58078.0,58058.0,2.19739019]
[1617926404194,0.4447301,58078.0,58059.0,0.0514]
[1617926404595,0.4447301,58078.0,58077.0,1.62712996]
[1617926405193,0.4961301,58078.0,58077.0,1.62712996]
[1617926405396,0.4447301,58078.0,58077.0,1.62712996]
[1617926406596,0.4447301,58078.0,58077.0,1.67842996]
[1617926406895,0.4447301,58078.0,58077.0,1.77824996]
[1617926407096,0.3601301,58078.0,58077.0,1.83980337]
[1617926407296,0.3601301,58078.0,58077.0,2.03980337]
[1617926407497,0.3601301,58078.0,58077.0,1.83980337]
[1617926407697,0.3601301,58078.0,58077.0,2.40858649]
[1617926408103,0.3601301,58078.0,58077.0,2.34703308]
[1617926408500,0.3601301,58078.0,58077.0,2.54703308]
[1617926408805,0.3601301,58078.0,58077.0,2.40858039]
[1617926409603,0.3092301,58078.0,58077.0,2.60858039]
[1617926409901,0.3092301,58078.0,58077.0,2.87858039]
[1617926410137,0.13234861,58078.0,58077.0,2.87858039]
[1617926410620,0.56,58092.0,58077.0,2.87858039]
[1617926410802,0.56,58092.0,58091.0,0.10725655]
[1617926411302,0.56,58092.0,58091.0,2.47689538]
[1617926413305,0.2467822,58094.0,58091.0,2.94689538]
[1617926414107,0.2467822,58094.0,58093.0,2.18590867]
[1617926414308,0.2467822,58094.0,58093.0,2.38590867]
[1617926414510,0.2467822,58094.0,58093.0,2.65590867]
[1617926414708,0.1661822,58094.0,58093.0,2.65590867]
[1617926415008,0.10725655,58118.0,58093.0,2.65590867]
[1617926415209,0.10725655,58118.0,58093.0,2.15072447]
[1617926415509,0.0519,58121.0,58112.0,0.30156698]
[1617926415711,0.0519,58121.0,58112.0,0.45174698]
[1617926416110,0.0519,58121.0,58114.0,0.30151282]
[1617926416610,0.0519,58121.0,58112.0,0.15018]
[1617926416909,0.0519,58121.0,58116.0,0.10725655]
[1617926417110,0.0515,58126.0,58116.0,0.10725655]
[1617926420513,0.10725655,58127.0,58116.0,0.10725655]
[1617926422514,0.10725655,58127.0,58117.0,0.0517]
[1617926422715,0.10725655,58127.0,58116.0,0.10725655]
[1617926424416,0.10725655,58127.0,58117.0,0.30096506]
[1617926425817,0.10725655,58127.0,58116.0,0.10725655]
[1617926426917,0.10725655,58120.0,58116.0,0.10725655]
[1617926428719,0.10725655,58120.0,58117.0,0.052]
[1617926429018,0.10725655,58126.0,58116.0,0.10725655]
[1617926432125,0.10725655,58126.0,58117.0,0.0517]
[1617926432330,0.10725655,58126.0,58116.0,0.10725655]
[1617926434022,0.0514,58125.0,58116.0,0.10725655]
[1617926434224,0.10725655,58126.0,58116.0,0.10725655]
[1617926434924,0.10725655,58118.0,58116.0,0.10725655]
[1617926436744,0.4625,58137.0,58116.0,0.10725655]
[1617926436932,0.10725655,58125.0,58116.0,0.10725655]
[1617926440630,0.10725655,58125.0,58117.0,0.0511]
[1617926441132,0.10725655,58118.0,58117.0,0.0511]
[1617926441534,0.10725655,58118.0,58116.0,0.10725655]
[1617926442134,0.14251,58135.0,58116.0,0.10725655]
[1617926442433,0.4625,58137.0,58116.0,0.10725655]
[1617926442934,0.10725655,58127.0,58116.0,0.10725655]
[1617926446039,0.0516,58126.0,58116.0,0.10725655]
[1617926446239,0.10725655,58127.0,58116.0,0.10725655]
[1617926447240,0.10725655,58127.0,58116.0,0.40678576]
[1617926449208,0.10725655,58117.0,58116.0,0.29952921]
[1617926449400,0.10725655,58117.0,58113.0,0.35943505]
[1617926449401,0.30304655,58117.0,58113.0,0.29965511]
[1617926449870,0.30304655,58117.0,58106.0,0.54675071]
[1617926449871,0.30304655,58117.0,58112.0,0.29977982]
[1617926450246,0.30304655,58117.0,58110.0,0.29985723]
[1617926450746,0.30304655,58117.0,58108.0,0.30002237]
[1617926450945,0.25094655,58117.0,58108.0,0.30002237]
[1617926451147,0.25094655,58117.0,58105.0,0.36002685]
[1617926451148,0.10725655,58109.0,58105.0,0.30014518]
[1617926451548,0.10725655,58109.0,58104.0,0.30016561]
[1617926452847,0.10725655,58109.0,58105.0,0.30054561]
[1617926453547,0.052,58108.0,58105.0,0.30054561]
[1617926453948,0.10725655,58109.0,58105.0,0.30054561]
[1617926454765,0.10725655,58109.0,58106.0,0.30049007]
[1617926455571,0.10725655,58109.0,58107.0,0.30037152]
[1617926455760,0.10725655,58109.0,58108.0,0.0521]
[1617926455971,0.10725655,58109.0,58107.0,0.30037152]
[1617926457252,0.10725655,58109.0,58108.0,0.30002881]
[1617926458551,0.10725655,58109.0,58108.0,0.36154663]
[1617926459069,0.10725655,58109.0,58108.0,0.30002881]
[1617926460252,3.01765655,58109.0,58108.0,0.30002881]
[1617926462555,3.06875655,58109.0,58108.0,0.35212881]
[1617926463657,3.01765655,58109.0,58108.0,0.72132598]
[1617926464055,3.01765655,58109.0,58108.0,1.60583326]
[1617926464855,0.10725655,58109.0,58108.0,1.60583326]
[1617926465056,0.10725655,58109.0,58108.0,4.48013326]
[1617926465656,0.10725655,58109.0,58108.0,4.63392016]
[1617926467060,0.68,58127.0,58108.0,4.63392016]
[1617926467259,0.10725655,58120.0,58113.0,0.10725655]
[1617926467861,0.10725655,58120.0,58119.0,1.10461587]
[1617926468062,0.10725655,58120.0,58119.0,1.22908587]
[1617926468763,0.10725655,58120.0,58119.0,1.29059405]
[1617926470062,0.10725655,58120.0,58119.0,1.16612405]
[1617926470863,0.68,58127.0,58119.0,1.10461587]
[1617926471066,0.68,58127.0,58123.0,3.4762]
[1617926471362,0.78725655,58127.0,58123.0,3.4762]
[1617926471563,0.78725655,58127.0,58126.0,0.66206105]
[1617926473766,0.78725655,58127.0,58126.0,1.10310311]
[1617926474168,0.78725655,58127.0,58126.0,0.66206105]
[1617926474670,0.78725655,58127.0,58126.0,1.10300738]
[1617926478575,0.78725655,58127.0,58126.0,1.16450611]
[1617926478978,0.78725655,58127.0,58126.0,1.10300738]
[1617926486280,0.78725655,58127.0,58126.0,1.22354738]
[1617926487082,0.78725655,58127.0,58126.0,1.28504258]
[1617926487382,0.68,58127.0,58126.0,1.39229913]
[1617926488082,4.0815,58127.0,58126.0,1.39229913]
[1617926488383,0.68,58127.0,58126.0,1.39229913]
[1617926488583,0.6777,58127.0,58126.0,1.39229913]
[1617926488783,0.6736,58127.0,58126.0,1.39229913]
[1617926489483,0.6736,58127.0,58126.0,1.98403902]
[1617926491987,0.6736,58127.0,58126.0,2.25403902]
[1617926492586,4.0937,58127.0,58126.0,2.25403902]
[1617926492789,4.0937,58127.0,58126.0,2.16179852]
[1617926494590,4.0937,58127.0,58126.0,1.66229913]
[1617926494788,0.6736,58127.0,58126.0,1.66229913]
[1617926494990,0.6736,58127.0,58126.0,2.16116266]
[1617926495190,0.6736,58127.0,58126.0,4.70106266]
[1617926495990,0.6736,58127.0,58126.0,4.79330311]
[1617926496793,0.6736,58127.0,58126.0,4.29443958]
[1617926497996,0.6736,58127.0,58126.0,4.79314247]
[1617926498396,0.6736,58127.0,58126.0,4.29443958]
[1617926499695,0.6736,58127.0,58126.0,1.75453958]
[1617926499895,0.6736,58127.0,58126.0,1.63399958]
[1617926500096,4.1542,58127.0,58126.0,1.63399958]
[1617926500296,4.1542,58127.0,58126.0,2.04128094]
[1617926501296,0.6736,58127.0,58126.0,2.04128094]
[1617926501496,0.6736,58127.0,58126.0,4.97508094]
[1617926501996,0.6736,58127.0,58126.0,4.56779896]
[1617926503797,0.6736,58127.0,58126.0,1.63399896]
[1617926504099,3.2886,58127.0,58126.0,1.43450258]
[1617926505707,3.39585655,58127.0,58126.0,1.43450258]
[1617926505910,0.78085655,58127.0,58126.0,1.43450258]
[1617926507608,0.78085655,58127.0,58126.0,0.99355625]
[1617926508001,0.78085655,58127.0,58126.0,1.43276079]
[1617926508604,0.78085655,58127.0,58126.0,1.48396079]
[1617926508806,0.78085655,58127.0,58126.0,1.43276079]
[1617926509003,0.78085655,58127.0,58126.0,5.12109079]
[1617926509705,0.78085655,58127.0,58126.0,5.21333275]
[1617926511311,0.6736,58127.0,58126.0,5.21333275]
[1617926511609,0.6736,58127.0,58126.0,5.3205893]
[1617926517631,0.6736,58127.0,58126.0,5.81965315]
[1617926524325,0.6736,58127.0,58126.0,2.23045315]
[1617926524626,4.2868,58127.0,58126.0,2.0240666]
[1617926524826,0.7259,58127.0,58126.0,2.0240666]
[1617926525025,0.6736,58127.0,58126.0,2.0240666]
[1617926525226,0.6736,58127.0,58126.0,1.93182464]
[1617926525626,0.78085655,58127.0,58126.0,1.93182464]
[1617926525825,0.78085655,58127.0,58126.0,4.89742464]
[1617926526430,0.78085655,58127.0,58126.0,4.98966229]
[1617926528329,0.10725655,58127.0,58126.0,4.98966229]
[1617926529130,0.10725655,58127.0,58126.0,3.2356]
[1617926529537,0.10725655,58127.0,58126.0,4.83429436]
[1617926529730,0.10725655,58133.0,58126.0,4.94155091]
[1617926530431,0.15905655,58133.0,58132.0,1.0990351]
[1617926530731,0.10725655,58133.0,58132.0,1.4875551]
[1617926531133,0.10725655,58133.0,58132.0,2.04857131]
[1617926535839,0.10725655,58133.0,58132.0,2.09947131]
[1617926536039,0.10725655,58133.0,58132.0,2.04857131]
[1617926536441,0.15925655,58133.0,58132.0,2.04857131]
[1617926536640,0.10725655,58133.0,58132.0,2.04857131]
[1617926537642,0.15855655,58133.0,58132.0,2.04857131]
[1617926538243,0.10725655,58133.0,58132.0,2.04857131]
[1617926538442,0.10725655,58133.0,58132.0,5.00577131]
[1617926538842,0.10725655,58133.0,58132.0,5.09800937]
[1617926540043,0.10725655,58133.0,58132.0,2.14080937]
[1617926540745,0.10725655,58133.0,58132.0,2.04857131]
[1617926544249,0.19452412,58133.0,58132.0,2.04857131]
[1617926548956,0.24532412,58133.0,58132.0,2.04857131]
[1617926549157,0.19452412,58133.0,58132.0,2.04857131]
[1617926551457,0.19452412,58133.0,58132.0,5.26877131]
[1617926552369,0.19452412,58133.0,58132.0,5.36100513]
[1617926552370,0.08726757,58133.0,58132.0,5.36100513]
[1617926552758,0.08726757,58133.0,58132.0,5.41260513]
[1617926552974,0.08726757,58133.0,58132.0,5.36100513]
[1617926553559,0.71676203,58169.0,58132.0,11.56100513]
[1617926553759,0.71676203,58169.0,58168.0,0.10725655]
[1617926554023,0.71676203,58169.0,58168.0,0.21074655]
[1617926554302,0.71654311,58186.0,58168.0,0.77919094]
[1617926554559,1.35327074,58191.0,58185.0,3.0623]
[1617926554560,0.59589865,58191.0,58185.0,3.0623]
[1617926554862,0.59589865,58191.0,58185.0,3.16441]
[1617926555059,0.4525,58191.0,58186.0,0.29739854]
[1617926555760,1.0,58189.0,58186.0,0.29739854]
[1617926555962,0.4525,58191.0,58186.0,0.29739854]
[1617926556362,1.0,58188.0,58186.0,0.29739854]
[1617926556561,1.0,58190.0,58186.0,0.29739854]
[1617926556761,0.4525,58191.0,58186.0,0.29739854]
[1617926558062,0.4525,58191.0,58186.0,0.65409241]
[1617926559262,0.4525,58191.0,58186.0,1.65409241]
[1617926559563,0.4525,58191.0,58186.0,0.65409241]
[1617926559965,0.4525,58191.0,58186.0,0.71554127]
[1617926560464,0.4525,58191.0,58183.0,0.10725655]
[1617926560865,0.4525,58191.0,58183.0,1.10725655]
[1617926561064,0.4525,58191.0,58183.0,0.10725655]
[1617926561266,0.4525,58191.0,58184.0,0.27]
[1617926562966,0.4525,58191.0,58185.0,1.0]
[1617926563169,0.4525,58191.0,58184.0,0.27]
[1617926563369,0.4525,58191.0,58186.0,1.0]
[1617926563903,0.10725655,58212.0,58190.0,0.10725655]
[1617926564102,0.10725655,58212.0,58190.0,1.10725655]
[1617926564285,0.10725655,58212.0,58190.0,0.10725655]
[1617926564508,0.10725655,58212.0,58211.0,2.7678]
[1617926564771,0.10725655,58212.0,58211.0,2.86892]
[1617926565772,0.15925655,58212.0,58211.0,2.7678]
[1617926566276,0.15925655,58212.0,58206.0,0.10725655]
[1617926566473,0.0519,58211.0,58210.0,2.9329]
[1617926566876,0.15925655,58212.0,58210.0,2.9329]
[1617926566877,0.10725655,58212.0,58210.0,2.9329]
[1617926568073,0.10725655,58218.0,58210.0,2.9329]
[1617926568272,0.10725655,58218.0,58206.0,0.10725655]
[1617926568472,0.10725655,58218.0,58217.0,2.4752]
[1617926568673,0.4541,58225.0,58217.0,2.6752]
[1617926568872,0.4541,58225.0,58217.0,3.7452]
[1617926569172,0.4541,58225.0,58224.0,2.4742]
[1617926569573,0.4541,58225.0,58224.0,2.7442]
[1617926569971,0.4541,58225.0,58224.0,2.85145655]
[1617926572275,0.4541,58225.0,58224.0,0.37725655]
[1617926572777,0.4541,58225.0,58224.0,3.09875655]
[1617926572977,0.5051,58225.0,58224.0,3.09875655]
[1617926573175,0.4541,58225.0,58224.0,3.09875655]
[1617926576579,0.4541,58225.0,58224.0,0.37725655]
[1617926576780,0.4541,58225.0,58201.0,0.28990869]
[1617926576781,5.83939,58225.0,58201.0,0.28990869]
[1617926576979,3.13059,58225.0,58201.0,0.28990869]
[1617926577180,3.0452,58210.0,58197.0,0.29011659]
[1617926577379,3.13992,58210.0,58197.0,0.29011659]
[1617926577581,1.0,58207.0,58188.0,0.29061689]
[1617926577780,1.0,58203.0,58188.0,0.29061689]
[1617926577986,0.10725655,58190.0,58185.0,0.29078173]
[1617926578279,0.22795655,58190.0,58189.0,0.27]
[1617926578580,0.22795655,58190.0,58189.0,3.33947881]
[1617926578981,0.22693269,58190.0,58189.0,3.3089]
[1617926579786,1.0,58209.0,58189.0,3.3089]
[1617926580014,0.10725655,58206.0,58189.0,4.55424655]
[1617926580183,0.10725655,58206.0,58192.0,0.2904085]
[1617926580382,0.4541,58225.0,58192.0,0.2904085]
[1617926580585,0.4541,58225.0,58205.0,1.0]
[1617926580784,0.4541,58225.0,58205.0,0.15177]
[1617926580984,0.4541,58225.0,58206.0,0.27]
[1617926581383,0.4541,58225.0,58224.0,3.1848]
[1617926582016,0.56135655,58225.0,58224.0,3.1848]
[1617926582306,1.56135655,58225.0,58205.0,0.10725655]
[1617926582486,0.66799655,58225.0,58205.0,0.10725655]
[1617926582685,1.66799655,58225.0,58213.0,3.372]
[1617926583189,1.0,58221.0,58214.0,0.27]
[1617926583485,1.0,58221.0,58201.0,2.8145]
[1617926583787,1.0,58215.0,58201.0,2.8145]
[1617926584017,0.10725655,58202.0,58201.0,2.8145]
[1617926584387,0.10725655,58202.0,58201.0,3.0845]
[1617926585890,0.10725655,58208.0,58201.0,3.19175655]
[1617926587926,0.10725655,58208.0,58201.0,0.37725655]
[1617926588158,0.10725655,58208.0,58197.0,0.289913]
[1617926588159,1.0,58201.0,58197.0,0.289913]
[1617926588396,1.0,58202.0,58197.0,0.289913]
[1617926588596,1.0,58198.0,58192.0,0.29023728]
[1617926589018,1.0,58198.0,58189.0,0.29040279]
[1617926589500,1.0,58198.0,58175.0,0.48400465]
[1617926589501,0.99897616,58196.0,58193.0,0.27]
[1617926589797,1.5,58192.0,58187.0,0.29090209]
[1617926590079,1.5,58192.0,58181.0,0.29116559]
[1617926590080,0.10725655,58188.0,58181.0,0.29116559]
[1617926590248,1.5,58187.0,58181.0,0.29116559]
[1617926590497,1.5,58187.0,58175.0,0.29144995]
[1617926590695,1.5,58181.0,58175.0,0.29144995]
[1617926590898,1.64693,58181.0,58175.0,0.29144995]
[1617926591241,1.0,58176.0,58166.0,0.2917284]
[1617926591496,1.5,58175.0,58166.0,0.2917284]
[1617926591896,1.0,58167.0,58161.0,0.29190901]
[1617926592097,0.10725655,58162.0,58161.0,0.29190901]
[1617926592297,0.10725655,58162.0,58157.0,0.29211772]
[1617926592496,1.10725655,58162.0,58161.0,0.27]
[1617926593098,0.10725655,58162.0,58158.0,0.01]
[1617926593400,0.10725655,58162.0,58161.0,3.3008]
[1617926593597,0.10725655,58162.0,58161.0,3.2908]
[1617926593854,1.0,58176.0,58161.0,3.2908]
[1617926594031,0.10725655,58173.0,58166.0,0.10725655]
[1617926594500,0.10725655,58173.0,58167.0,0.27]
[1617926595699,1.0,58168.0,58167.0,0.27]
[1617926595901,1.0,58168.0,58162.0,0.27]
[1617926596215,0.10725655,58163.0,58161.0,3.2908]
[1617926596415,0.10725655,58163.0,58162.0,0.27]
[1617926599600,0.10623236,58163.0,58162.0,0.27]
[1617926602305,0.10623236,58163.0,58162.0,0.47]
[1617926602506,0.10623236,58163.0,58162.0,0.27]
[1617926602707,0.10623236,58163.0,58162.0,0.56288064]
[1617926602906,1.0,58183.0,58162.0,0.56288064]
[1617926603107,1.0,58183.0,58162.0,0.66265064]
[1617926603308,1.0,58189.0,58162.0,0.66265064]
[1617926603510,1.0,58186.0,58162.0,0.66265064]
[1617926603709,1.0,58186.0,58165.0,0.29277731]
[1617926603915,1.0,58177.0,58166.0,0.27]
[1617926604110,0.10725655,58168.0,58166.0,0.27]
[1617926604409,0.10725655,58168.0,58163.0,0.27]
[1617926604609,0.10725655,58168.0,58164.0,0.26]
[1617926604809,0.10725655,58168.0,58167.0,0.01]
[1617926605009,0.10725655,58168.0,58162.0,0.27]
[1617926605223,0.10725655,58168.0,58161.0,0.01]
[1617926605910,0.10725655,58168.0,58158.0,0.29316799]
[1617926605911,0.10725655,58168.0,58158.0,0.27]
[1617926606149,0.10725655,58156.0,58155.0,0.29325182]
[1617926606312,0.20364655,58156.0,58152.0,0.29331994]
[1617926606513,0.20364655,58156.0,58154.0,0.27]
[1617926606812,0.20364655,58156.0,58153.0,0.26]
[1617926607013,3.2725,58155.0,58151.0,0.29341655]
[1617926607279,1.0,58154.0,58149.0,0.29352905]
[1617926607512,1.0,58152.0,58149.0,0.29352905]
[1617926607753,1.0,58152.0,58142.0,0.43050927]
[1617926607754,1.0,58152.0,58142.0,0.29378061]
[1617926607938,1.0,58150.0,58142.0,0.29378061]
[1617926608156,3.2725,58155.0,58140.0,0.29387198]
[1617926608157,0.10725655,58143.0,58140.0,0.29387198]
[1617926608414,1.20646655,58143.0,58139.0,0.29370968]
[1617926608613,2.9613,58140.0,58139.0,0.29370968]
[1617926609013,2.9613,58140.0,58132.0,0.06146282]
[1617926609014,2.9613,58140.0,58138.0,0.563736]
[1617926609212,3.9613,58140.0,58139.0,0.26]
[1617926609413,3.9613,58140.0,58139.0,0.35728454]
[1617926609812,3.9613,58140.0,58139.0,0.62728454]
[1617926610013,2.9613,58140.0,58139.0,0.56581717]
[1617926610414,0.10725655,58143.0,58139.0,0.56581717]
[1617926610615,0.10725655,58143.0,58139.0,0.70088717]
[1617926610815,0.10725655,58143.0,58142.0,0.29574761]
[1617926611915,0.10725655,58143.0,58142.0,3.69254761]
[1617926612816,0.10725655,58143.0,58138.0,0.29470871]
[1617926613515,0.10725655,58143.0,58139.0,0.27]
[1617926614517,0.10725655,58143.0,58138.0,0.27]
[1617926615217,2.9521,58139.0,58138.0,0.27]
[1617926615818,2.9521,58139.0,58137.0,0.01]
[1617926616220,2.9521,58139.0,58138.0,0.27]
[1617926616419,2.9521,58139.0,58137.0,0.27]
[1617926616820,2.9521,58139.0,58138.0,0.27]
[1617926617120,2.9521,58139.0,58137.0,0.27]
[1617926617322,2.9521,58139.0,58138.0,0.26]
[1617926617722,2.9521,58139.0,58137.0,0.27]
[1617926618221,2.9521,58139.0,58136.0,0.30477519]
[1617926618222,0.10725655,58137.0,58136.0,0.30477519]
[1617926618429,0.10725655,58137.0,58136.0,0.29477519]
[1617926618624,0.10725655,58137.0,58136.0,0.27]
[1617926619023,0.10725655,58137.0,58132.0,0.29495418]
[1617926619230,0.10725655,58137.0,58136.0,0.27]
[1617926619622,0.10725655,58137.0,58135.0,0.29475489]
[1617926619824,0.10725655,58137.0,58136.0,0.27]
[1617926620224,0.10725655,58137.0,58134.0,0.294734]
[1617926620424,0.10725655,58137.0,58134.0,0.564734]
[1617926620823,0.10725655,58137.0,58134.0,0.294734]
[1617926621024,0.10725655,58137.0,58135.0,0.56427965]
[1617926621626,0.10725655,58137.0,58135.0,0.29427965]
[1617926621928,0.10725655,58137.0,58136.0,0.27]
[1617926622127,0.10725655,58137.0,58132.0,0.27]
[1617926622526,0.10725655,58137.0,58136.0,0.27]
[1617926622826,0.10725655,58137.0,58132.0,0.27]
[1617926623327,0.10725655,58137.0,58136.0,0.27]
[1617926623527,3.1398,58135.0,58132.0,0.27]
[1617926624128,3.1398,58135.0,58122.0,0.10725655]
[1617926624830,3.1398,58135.0,58123.0,0.26]
[1617926626231,0.10725655,58128.0,58123.0,0.26]
[1617926627134,3.6984,58124.0,58123.0,0.26]
[1617926630036,3.6984,58124.0,58110.0,0.43191776]
[1617926630335,3.6984,58124.0,58112.0,0.10725655]
[1617926630336,0.10725655,58119.0,58112.0,0.10725655]
[1617926630534,0.20552655,58119.0,58112.0,0.10725655]
[1617926630735,0.20552655,58119.0,58113.0,0.27]
[1617926631236,0.20552655,58119.0,58114.0,0.06148582]
[1617926631751,0.20552655,58119.0,58115.0,0.27]
[1617926632157,0.20552655,58119.0,58112.0,0.10725655]
[1617926632158,0.20552655,58119.0,58113.0,0.27]
[1617926632459,0.20552655,58119.0,58116.0,0.27]
[1617926632656,0.20552655,58119.0,58113.0,0.27]
[1617926633138,0.20552655,58119.0,58117.0,0.27]
[1617926633336,0.20552655,58119.0,58113.0,0.27]
[1617926633540,0.20552655,58119.0,58118.0,0.27]
[1617926633772,0.10725655,58119.0,58118.0,0.27]
[1617926633937,0.10725655,58119.0,58113.0,0.27]
[1617926634138,0.10725655,58119.0,58118.0,0.27]
[1617926634637,0.10725655,58119.0,58113.0,0.27]
[1617926634838,0.10725655,58119.0,58118.0,0.27]
[1617926635140,0.10725655,58119.0,58113.0,0.27]
[1617926635439,0.10725655,58119.0,58118.0,0.27]
[1617926635839,0.10725655,58119.0,58113.0,0.27]
[1617926636039,0.10725655,58119.0,58118.0,0.27]
[1617926636439,0.10725655,58119.0,58113.0,0.27]
[1617926638945,3.6984,58124.0,58113.0,0.27]
[1617926639151,1.0,58130.0,58113.0,0.27]
[1617926639360,1.0,58130.0,58119.0,3.1403]
[1617926639746,1.0,58130.0,58120.0,0.27]
[1617926640346,0.10725655,58125.0,58120.0,0.27]
[1617926640547,0.0513,58124.0,58120.0,0.27]
[1617926641047,0.10725655,58125.0,58120.0,0.27]
[1617926641949,1.10725655,58125.0,58120.0,0.27]
[1617926642250,0.10725655,58125.0,58120.0,0.27]
[1617926642751,1.0,58124.0,58120.0,0.27]
[1617926643149,0.10725655,58125.0,58120.0,0.27]
[1617926646254,0.10725655,58125.0,58123.0,0.10725655]
[1617926648155,0.10725655,58125.0,58123.0,0.24706655]
[1617926648355,0.10725655,58135.0,58124.0,2.7738]
[1617926648554,0.10725655,58135.0,58124.0,3.0438]
[1617926648755,1.0,58151.0,58124.0,3.0952]
[1617926648957,0.473,58152.0,58125.0,1.0]
[1617926649156,0.473,58152.0,58133.0,1.0]
[1617926649356,0.473,58152.0,58133.0,1.0519]
[1617926649557,0.473,58152.0,58134.0,0.01]
[1617926649958,0.473,58152.0,58135.0,0.06147213]
[1617926650158,0.473,58152.0,58135.0,0.19180213]
[1617926650361,0.10725655,58149.0,58142.0,0.10725655]
[1617926652090,0.10725655,58149.0,58143.0,0.29590244]
[1617926652360,0.15905655,58149.0,58143.0,0.29590244]
[1617926652561,0.10725655,58149.0,58143.0,0.29590244]
[1617926653163,0.10725655,58149.0,58142.0,0.4031742]
[1617926653562,0.10725655,58149.0,58142.0,0.10725655]
[1617926654062,0.10725655,58149.0,58142.0,0.40318123]
[1617926655063,0.10725655,58149.0,58143.0,0.29586323]
[1617926655863,0.10725655,58149.0,58144.0,0.29580644]
[1617926658970,0.10725655,58149.0,58142.0,0.46218129]
[1617926658971,0.10725655,58149.0,58143.0,0.29587625]
[1617926660871,0.10725655,58149.0,58144.0,0.65306058]
[1617926661472,1.10725655,58149.0,58144.0,0.65306058]
[1617926661872,0.10725655,58149.0,58144.0,0.65306058]
[1617926665779,1.10725655,58149.0,58144.0,0.65306058]
[1617926666179,1.0,58147.0,58144.0,0.65306058]
[1617926666580,1.484,58145.0,58144.0,0.65306058]
[1617926666780,0.484,58145.0,58144.0,0.65306058]
[1617926667782,2.9818,58145.0,58144.0,0.65306058]
[1617926668284,0.484,58145.0,58144.0,0.65306058]
[1617926668583,0.484,58145.0,58144.0,3.18816058]
[1617926669185,0.484,58145.0,58144.0,3.24962904]
[1617926669384,0.59125655,58145.0,58144.0,3.24962904]
[1617926669786,0.484,58145.0,58144.0,3.24962904]
[1617926669987,0.484,58145.0,58144.0,3.68460161]
[1617926671287,0.484,58145.0,58144.0,3.79185816]
[1617926672089,0.484,58145.0,58144.0,4.06185816]
[1617926672689,0.484,58145.0,58144.0,4.55537426]
[1617926673190,0.484,58145.0,58144.0,4.06185816]
[1617926673389,0.479,58145.0,58144.0,4.06185816]
[1617926677011,0.479,58145.0,58144.0,3.62688559]
[1617926677233,0.479,58145.0,58144.0,3.51962904]
[1617926677411,0.58625655,58145.0,58144.0,3.51962904]
[1617926677735,0.72463655,58145.0,58144.0,3.51962904]
[1617926677898,0.72463655,58145.0,58144.0,0.71452904]
[1617926678097,4.10063655,58145.0,58144.0,0.71452904]
[1617926678424,4.10063655,58145.0,58144.0,0.65306058]
[1617926678799,4.10063655,58145.0,58144.0,0.29684572]
[1617926679200,5.10063655,58145.0,58144.0,0.29684572]
[1617926679701,5.10063655,58145.0,58141.0,0.29661062]
[1617926680101,5.10063655,58145.0,58137.0,0.29688461]
[1617926680300,5.30063655,58145.0,58137.0,0.29688461]
[1617926680702,5.30063655,58145.0,58136.0,0.29696482]
[1617926680703,1.0,58138.0,58136.0,0.29696482]
[1617926681202,1.0,58138.0,58127.0,0.061472]
[1617926681203,2.521,58136.0,58135.0,0.29708993]
[1617926681404,2.62825655,58136.0,58135.0,0.29708993]
[1617926681604,2.62825655,58136.0,58134.0,0.29712697]
[1617926682707,1.0,58135.0,58134.0,0.29712697]
[1617926683415,1.0,58135.0,58132.0,0.29742534]
[1617926683809,1.0,58135.0,58125.0,0.43622383]
[1617926683810,1.0,58135.0,58131.0,0.29714898]
[1617926684412,1.0,58135.0,58114.0,0.15370144]
[1617926684413,1.0,58135.0,58132.0,0.29729845]
[1617926684612,0.0515,58134.0,58132.0,0.29729845]
[1617926685614,0.0515,58134.0,58131.0,0.29731739]
[1617926685815,1.0515,58134.0,58106.0,0.1274]
[1617926686016,1.0,58132.0,58106.0,0.1274]
[1617926686217,1.09481,58132.0,58106.0,0.1274]
[1617926686418,3.1206,58116.0,58109.0,0.55499359]
[1617926686617,3.27339,58116.0,58111.0,0.27]
[1617926686818,3.27339,58116.0,58115.0,1.58570523]
[1617926687124,3.27339,58116.0,58115.0,1.85570523]
[1617926687521,3.38064655,58116.0,58115.0,1.85570523]
[1617926687719,3.38064655,58116.0,58115.0,1.42165806]
[1617926689119,3.27339,58116.0,58115.0,1.42165806]
[1617926689520,3.38064655,58116.0,58115.0,1.42165806]
[1617926690420,3.38064655,58116.0,58115.0,1.15165806]
[1617926690720,4.38064655,58116.0,58115.0,1.15165806]
[1617926690923,4.58064655,58116.0,58115.0,0.65410341]
[1617926691322,4.58064655,58116.0,58114.0,0.29853348]
[1617926691923,4.58064655,58116.0,58112.0,0.29863091]
[1617926692724,1.5,58112.0,58109.0,0.29874584]
[1617926693326,1.5,58109.0,58106.0,0.29880052]
[1617926693523,4.92565655,58107.0,58106.0,0.29880052]
[1617926693826,4.92565655,58107.0,58099.0,0.43824076]
[1617926693827,4.92565655,58107.0,58102.0,0.29902779]
[1617926694225,1.0,58103.0,58102.0,0.29902779]
[1617926694526,2.83582,58103.0,58101.0,0.35954198]
[1617926694926,1.33582,58103.0,58101.0,0.29980843]
[1617926695125,1.0,58102.0,58101.0,0.29980843]
[1617926695325,1.2,58102.0,58101.0,0.29980843]
[1617926695928,1.2,58102.0,58088.0,0.49975297]
[1617926695929,1.2,58102.0,58088.0,0.29785664]
[1617926696333,1.2,58102.0,58089.0,0.29785754]
[1617926696530,1.0,58096.0,58089.0,0.56785754]
[1617926696733,1.0,58100.0,58090.0,0.29778418]
[1617926697230,0.2,58102.0,58091.0,0.01]